bitfinex/quotes_BTCUSD_20230405
["timestamp","ask_amount","ask_price","bid_price","bid_amount"]
[1680661020636,0.80692969,28654.0,28653.0,0.45704514]
[1680661020871,0.77128956,28654.0,28653.0,0.79953344]
[1680661021087,0.76628956,28654.0,28653.0,0.45704514]
[1680661021308,0.77128956,28654.0,28653.0,0.45704514]
[1680661021751,0.72181056,28654.0,28653.0,0.45704514]
[1680661021978,0.77243756,28654.0,28653.0,0.45704514]
[1680661022202,0.76713756,28654.0,28653.0,0.45504514]
[1680661022426,0.77213756,28654.0,28653.0,0.45704514]
[1680661023306,0.77713756,28654.0,28653.0,0.45904514]
[1680661023826,0.122427,28654.0,28653.0,0.87789555]
[1680661024057,0.122427,28654.0,28653.0,0.87801555]
[1680661024058,0.0718,28654.0,28653.0,0.87801555]
[1680661024284,0.0718,28654.0,28653.0,0.89231555]
[1680661024987,0.0618,28654.0,28653.0,0.88831555]
[1680661025212,0.3668,28654.0,28653.0,0.89031555]
[1680661025437,0.3618,28654.0,28653.0,0.88831555]
[1680661025667,0.3668,28654.0,28653.0,0.89031555]
[1680661025895,0.3996061,28654.0,28653.0,0.89031555]
[1680661027331,0.3378061,28654.0,28653.0,0.89031555]
[1680661027569,0.3378061,28654.0,28653.0,0.47152514]
[1680661028493,0.3328061,28654.0,28653.0,0.45522514]
[1680661028737,0.3378061,28654.0,28653.0,0.45622514]
[1680661028952,0.74185866,28654.0,28653.0,0.45622514]
[1680661029609,0.80325866,28654.0,28653.0,0.45622514]
[1680661029831,0.79825866,28654.0,28653.0,0.45522514]
[1680661030093,0.80325866,28654.0,28653.0,0.45722514]
[1680661031246,0.79855866,28654.0,28653.0,0.45722514]
[1680661031456,0.80705866,28654.0,28653.0,0.45722514]
[1680661033482,0.80705866,28654.0,28653.0,0.45716514]
[1680661036425,1.27199453,28654.0,28653.0,0.45716514]
[1680661037341,1.26699453,28654.0,28653.0,0.45516514]
[1680661037561,1.29099453,28654.0,28653.0,0.45616514]
[1680661038250,1.29099453,28654.0,28653.0,0.45604514]
[1680661038476,1.19375866,28654.0,28653.0,0.45604514]
[1680661039629,1.33595547,28654.0,28652.0,0.00018]
[1680661039861,0.3677,28652.0,28650.0,0.45504514]
[1680661040100,0.77007956,28651.0,28650.0,0.44148152]
[1680661040329,0.77037956,28651.0,28650.0,0.44148152]
[1680661040565,1.13807956,28651.0,28650.0,0.44148152]
[1680661041234,1.16507956,28651.0,28650.0,0.44148152]
[1680661042379,1.28158752,28651.0,28649.0,0.44148152]
[1680661042602,0.82298956,28650.0,28649.0,0.44148152]
[1680661042859,0.82328956,28650.0,28649.0,0.44148152]
[1680661043100,0.83178956,28650.0,28649.0,0.44148152]
[1680661043321,1.13178956,28650.0,28649.0,0.44148152]
[1680661043535,1.25931931,28650.0,28649.0,0.44148152]
[1680661043762,1.31760623,28650.0,28649.0,0.44148152]
[1680661045809,1.31746729,28650.0,28649.0,0.28997275]
[1680661046041,1.18993754,28650.0,28649.0,0.28997275]
[1680661047431,1.18993754,28650.0,28648.0,0.00018]
[1680661047661,0.783244,28649.0,28646.0,0.29015275]
[1680661047900,0.475854,28647.0,28646.0,0.29015275]
[1680661048131,1.13906456,28647.0,28646.0,0.29015275]
[1680661048580,1.16865851,28647.0,28646.0,0.29015275]
[1680661048816,1.13898402,28647.0,28646.0,0.29015275]
[1680661049573,1.13898402,28647.0,28646.0,0.28997275]
[1680661049796,1.13913402,28647.0,28646.0,0.28997275]
[1680661050019,1.13928402,28647.0,28646.0,0.28997275]
[1680661050251,1.16628402,28647.0,28646.0,0.28997275]
[1680661050698,1.28291242,28647.0,28646.0,0.28997275]
[1680661051623,1.25591242,28647.0,28646.0,0.28997275]
[1680661051848,1.28291242,28647.0,28646.0,0.28997275]
[1680661052759,1.25591242,28647.0,28646.0,0.28997275]
[1680661052999,1.28291242,28647.0,28646.0,0.28997275]
[1680661053636,1.16628402,28647.0,28646.0,0.28997275]
[1680661054083,1.13928402,28647.0,28646.0,0.28997275]
[1680661054335,1.16628402,28647.0,28646.0,0.28997275]
[1680661055470,1.13928402,28647.0,28646.0,0.28997275]
[1680661055693,1.29928402,28647.0,28646.0,0.28997275]
[1680661055918,1.32628402,28647.0,28646.0,0.28997275]
[1680661056125,1.45891242,28647.0,28646.0,0.28997275]
[1680661058642,1.48692394,28647.0,28646.0,0.28997275]
[1680661060699,1.48692394,28647.0,28645.0,0.00018]
[1680661060928,1.48692394,28647.0,28644.0,3.1992441]
[1680661060929,1.07888956,28646.0,28644.0,3.1992441]
[1680661061157,0.77051456,28645.0,28644.0,3.1992441]
[1680661061386,1.07901456,28645.0,28644.0,3.1994241]
[1680661062529,1.10601456,28645.0,28644.0,3.1994241]
[1680661062787,1.24590886,28645.0,28644.0,3.1994241]
[1680661064322,0.027,28645.0,28644.0,3.1994241]
[1680661064616,0.027,28645.0,28644.0,3.1993641]
[1680661064850,0.027,28645.0,28644.0,3.2205451]
[1680661065754,0.16,28647.0,28646.0,0.28997275]
[1680661065974,0.51471056,28647.0,28646.0,0.29015275]
[1680661066211,0.81471056,28647.0,28646.0,0.29015275]
[1680661067555,0.86479256,28647.0,28646.0,0.29015275]
[1680661067778,0.83271056,28647.0,28646.0,0.29015275]
[1680661067993,0.81471056,28647.0,28646.0,0.66426136]
[1680661068205,0.83271056,28647.0,28646.0,0.66426136]
[1680661071399,0.81471056,28647.0,28646.0,0.66426136]
[1680661071588,0.83271056,28647.0,28646.0,0.66426136]
[1680661071796,0.83271056,28647.0,28646.0,0.71426136]
[1680661075301,0.83301056,28647.0,28646.0,0.71408136]
[1680661075520,0.83271056,28647.0,28646.0,0.71426136]
[1680661075959,0.83271056,28647.0,28646.0,0.34015275]
[1680661077618,0.84121056,28647.0,28646.0,0.34015275]
[1680661077869,0.88990856,28647.0,28646.0,0.34015275]
[1680661079213,0.88990856,28647.0,28646.0,0.66598035]
[1680661079434,0.83271056,28647.0,28646.0,0.66598035]
[1680661079875,0.83271056,28647.0,28646.0,0.34015275]
[1680661080069,0.88460356,28647.0,28646.0,0.34015275]
[1680661080291,0.83271056,28647.0,28646.0,0.34015275]
[1680661080948,0.88395756,28647.0,28646.0,0.34015275]
[1680661081468,0.9717926,28647.0,28646.0,0.34015275]
[1680661081680,0.88395756,28647.0,28646.0,0.34015275]
[1680661082551,0.89245756,28647.0,28646.0,0.05018]
[1680661082766,0.89245756,28647.0,28646.0,0.05]
[1680661085495,0.89275756,28647.0,28646.0,0.05]
[1680661086171,0.89245756,28647.0,28646.0,0.05]
[1680661086381,1.35112332,28647.0,28646.0,0.05]
[1680661086613,1.36802332,28647.0,28646.0,0.05]
[1680661086838,1.27705756,28647.0,28646.0,0.05]
[1680661087311,0.90935756,28647.0,28646.0,0.48616405]
[1680661087741,0.83271056,28647.0,28646.0,0.50184127]
[1680661089575,0.478,28647.0,28646.0,0.51396893]
[1680661089792,0.478,28647.0,28646.0,0.23311705]
[1680661090019,0.178,28647.0,28646.0,0.62091153]
[1680661090960,0.16,28647.0,28646.0,0.62091153]
[1680661091187,0.162,28647.0,28646.0,0.62591153]
[1680661091425,0.16,28647.0,28646.0,0.23311705]
[1680661091651,0.16,28647.0,28646.0,0.565861]
[1680661092116,0.16,28647.0,28646.0,0.465861]
[1680661092568,0.162,28647.0,28646.0,0.470861]
[1680661096723,0.16,28647.0,28646.0,0.38292395]
[1680661096946,0.51571056,28647.0,28646.0,0.470861]
[1680661097172,0.86458656,28647.0,28646.0,0.05518]
[1680661097628,0.81571056,28647.0,28646.0,0.05518]
[1680661097847,0.86723756,28647.0,28646.0,0.05518]
[1680661098075,0.87573756,28647.0,28646.0,0.05518]
[1680661099438,0.88573756,28647.0,28646.0,0.05018]
[1680661099661,0.87473756,28647.0,28646.0,0.05018]
[1680661099884,0.87973756,28647.0,28646.0,0.05118]
[1680661100741,0.87473756,28647.0,28646.0,0.05018]
[1680661101420,0.89287856,28647.0,28646.0,0.05018]
[1680661101767,0.87487856,28647.0,28646.0,0.05018]
[1680661101993,0.88587856,28647.0,28646.0,0.05018]
[1680661102197,0.87487856,28647.0,28646.0,0.05018]
[1680661102404,0.89287856,28647.0,28646.0,0.05018]
[1680661102619,0.87487856,28647.0,28646.0,0.05018]
[1680661103660,0.88587856,28647.0,28646.0,0.05018]
[1680661103872,0.87487856,28647.0,28646.0,0.05018]
[1680661104480,0.82321056,28647.0,28646.0,0.05018]
[1680661104672,0.89127056,28647.0,28646.0,0.05018]
[1680661104905,0.81471056,28647.0,28646.0,0.05018]
[1680661105127,0.82571056,28647.0,28646.0,0.49101657]
[1680661105343,0.81471056,28647.0,28646.0,0.49101657]
[1680661105546,0.83271056,28647.0,28646.0,0.49101657]
[1680661105769,0.83271056,28647.0,28646.0,0.57395362]
[1680661106668,0.81471056,28647.0,28646.0,0.57395362]
[1680661106926,0.82571056,28647.0,28646.0,0.57395362]
[1680661107391,0.81471056,28647.0,28646.0,0.57395362]
[1680661107615,0.83271056,28647.0,28646.0,0.57395362]
[1680661107828,0.83271056,28647.0,28646.0,0.69835919]
[1680661108047,0.81471056,28647.0,28646.0,0.69835919]
[1680661108527,0.471,28647.0,28646.0,0.69835919]
[1680661108754,0.171,28647.0,28646.0,0.69835919]
[1680661109265,0.16,28647.0,28646.0,0.69835919]
[1680661109796,0.16,28647.0,28646.0,0.78129623]
[1680661110050,0.171,28647.0,28646.0,0.78129623]
[1680661112076,0.171,28647.0,28646.0,0.65689066]
[1680661112579,0.171,28647.0,28646.0,0.60971066]
[1680661113526,0.171,28647.0,28646.0,0.56907052]
[1680661114000,0.66760737,28647.0,28646.0,0.003]
[1680661114231,0.66760737,28647.0,28646.0,0.29297275]
[1680661114232,0.88289456,28647.0,28646.0,0.29297275]
[1680661117163,0.82601056,28647.0,28646.0,0.78598978]
[1680661118751,0.82601056,28647.0,28646.0,0.37648248]
[1680661118973,0.87388856,28647.0,28646.0,0.37648248]
[1680661119190,0.82601056,28647.0,28646.0,0.37648248]
[1680661120068,0.87262956,28647.0,28646.0,0.37648248]
[1680661120501,0.82601056,28647.0,28646.0,0.37648248]
[1680661120984,0.82601056,28647.0,28646.0,0.74975816]
[1680661123153,0.87494256,28647.0,28646.0,0.74975816]
[1680661123368,0.82601056,28647.0,28646.0,0.74975816]
[1680661126427,0.82601056,28647.0,28646.0,0.37648248]
[1680661126677,0.88476756,28647.0,28646.0,0.37648248]
[1680661127364,0.89346756,28647.0,28646.0,0.37648248]
[1680661127776,0.84321056,28647.0,28646.0,0.37648248]
[1680661128109,0.89146756,28647.0,28646.0,0.37648248]
[1680661129104,0.84321056,28647.0,28646.0,0.37648248]
[1680661130125,0.89205756,28647.0,28646.0,0.37648248]
[1680661130348,0.84321056,28647.0,28646.0,0.37648248]
[1680661130984,0.89063156,28647.0,28646.0,0.37648248]
[1680661131157,0.88943156,28647.0,28646.0,0.37648248]
[1680661131610,0.84201056,28647.0,28646.0,0.37648248]
[1680661132608,0.88865156,28647.0,28646.0,0.37648248]
[1680661132788,0.84201056,28647.0,28646.0,0.37648248]
[1680661133462,0.89005456,28647.0,28646.0,0.37648248]
[1680661133686,0.89122456,28647.0,28646.0,0.37648248]
[1680661133906,0.89122456,28647.0,28646.0,0.29297275]
[1680661134125,0.84201056,28647.0,28646.0,0.29297275]
[1680661134354,0.84201056,28647.0,28646.0,0.79574755]
[1680661134580,0.83351056,28647.0,28646.0,0.79574755]
[1680661140650,0.83351056,28647.0,28646.0,0.37648248]
[1680661140849,0.83351056,28647.0,28646.0,0.19241705]
[1680661141054,0.88236556,28647.0,28646.0,0.19241705]
[1680661141252,0.83351056,28647.0,28646.0,0.19241705]
[1680661143906,0.67351056,28647.0,28646.0,0.19241705]
[1680661144366,0.73272656,28647.0,28646.0,0.10890732]
[1680661146166,0.72172656,28647.0,28646.0,0.10890732]
[1680661146393,0.74872656,28647.0,28646.0,0.10890732]
[1680661146662,0.72172656,28647.0,28646.0,0.10890732]
[1680661146896,0.74872656,28647.0,28646.0,0.10890732]
[1680661148468,0.91872656,28647.0,28646.0,0.10890732]
[1680661150759,0.89172656,28647.0,28646.0,0.10890732]
[1680661150994,0.91872656,28647.0,28646.0,0.10890732]
[1680661151230,0.89092656,28647.0,28646.0,0.10890732]
[1680661151469,0.91792656,28647.0,28646.0,0.10890732]
[1680661155259,0.89092656,28647.0,28646.0,0.10890732]
[1680661155491,0.91792656,28647.0,28646.0,0.10890732]
[1680661156133,0.91677456,28647.0,28646.0,0.10890732]
[1680661157252,0.86721056,28647.0,28646.0,0.10890732]
[1680661158044,0.91458156,28647.0,28646.0,0.10890732]
[1680661158499,0.86721056,28647.0,28646.0,0.10890732]
[1680661158720,0.91646356,28647.0,28646.0,0.10890732]
[1680661159510,0.91646356,28647.0,28646.0,0.47450442]
[1680661159511,0.86721056,28647.0,28646.0,0.47450442]
[1680661159742,0.85871056,28647.0,28646.0,0.47450442]
[1680661159986,0.85871056,28647.0,28646.0,0.48365842]
[1680661160197,0.85871056,28647.0,28646.0,0.10890732]
[1680661160419,0.86721056,28647.0,28646.0,0.10890732]
[1680661161116,0.84021056,28647.0,28646.0,0.10890732]
[1680661161336,0.86721056,28647.0,28646.0,0.10890732]
[1680661162045,0.86721056,28647.0,28646.0,0.44523193]
[1680661163057,0.85871056,28647.0,28646.0,0.65397561]
[1680661163257,0.85871056,28647.0,28646.0,0.57046588]
[1680661163466,0.85871056,28647.0,28646.0,0.65408471]
[1680661163925,0.85871056,28647.0,28646.0,0.57046588]
[1680661164716,0.85871056,28647.0,28646.0,0.65408252]
[1680661165299,0.85871056,28647.0,28646.0,0.57046588]
[1680661166156,0.85871056,28647.0,28646.0,0.65408319]
[1680661167327,0.85871056,28647.0,28646.0,0.52884924]
[1680661167544,0.85871056,28647.0,28646.0,0.19252463]
[1680661169319,0.86721056,28647.0,28646.0,0.10890732]
[1680661171544,0.95313162,28647.0,28646.0,0.10890732]
[1680661171776,0.91660656,28647.0,28646.0,0.10890732]
[1680661172237,0.86641056,28647.0,28646.0,0.10890732]
[1680661172672,0.91631356,28647.0,28646.0,0.10890732]
[1680661172891,0.91288256,28647.0,28646.0,0.10890732]
[1680661175112,1.00417082,28647.0,28646.0,0.10890732]
[1680661176231,0.91288256,28647.0,28646.0,0.10890732]
[1680661177662,1.28028256,28647.0,28646.0,0.10880559]
[1680661178117,0.91258256,28647.0,28646.0,0.10880559]
[1680661178337,0.91288256,28647.0,28646.0,0.10880559]
[1680661178775,0.88588256,28647.0,28646.0,0.10880559]
[1680661179001,0.91288256,28647.0,28646.0,0.10880559]
[1680661180736,0.88588256,28647.0,28646.0,0.10880559]
[1680661181166,0.91288256,28647.0,28646.0,0.10880559]
[1680661183205,0.0259015,28653.0,28649.0,0.4]
[1680661183433,0.0259015,28653.0,28651.0,0.47650559]
[1680661183434,0.01027,28652.0,28651.0,0.47650559]
[1680661183670,0.005,28655.0,28654.0,0.10850559]
[1680661183900,0.01,28660.0,28659.0,0.10850559]
[1680661184136,0.01,28660.0,28659.0,0.30607859]
[1680661184373,0.01,28660.0,28659.0,0.89104879]
[1680661184605,0.01,28660.0,28659.0,1.53276322]
[1680661184832,0.01,28660.0,28659.0,1.88296769]
[1680661185059,0.01,28660.0,28659.0,1.92459751]
[1680661185527,0.01,28660.0,28659.0,2.32459751]
[1680661185752,0.0001,28660.0,28659.0,2.24095616]
[1680661185974,0.0001,28660.0,28659.0,2.15789823]
[1680661187314,0.0001,28660.0,28659.0,1.94499823]
[1680661187542,0.0011,28660.0,28659.0,1.97299823]
[1680661188684,0.02332,28663.0,28662.0,0.47620559]
[1680661188921,0.02332,28663.0,28662.0,1.25481415]
[1680661189162,0.02332,28663.0,28662.0,1.82325657]
[1680661189838,0.02332,28663.0,28662.0,1.84725657]
[1680661190060,0.02332,28663.0,28662.0,1.70525657]
[1680661190275,0.02332,28663.0,28662.0,1.67725657]
[1680661190527,0.02332,28663.0,28662.0,1.70525657]
[1680661190753,0.02332,28663.0,28662.0,2.10525657]
[1680661191206,0.01832,28663.0,28662.0,2.10525657]
[1680661191464,0.027932,28668.0,28666.0,0.70620559]
[1680661191693,0.027932,28668.0,28667.0,1.10142115]
[1680661191935,0.027932,28668.0,28667.0,1.10154115]
[1680661192150,0.02332,28670.0,28667.0,1.22664115]
[1680661192388,0.4497,28684.0,28667.0,1.22664115]
[1680661192389,0.0010214,28696.0,28694.0,0.2502144]
[1680661192623,0.25138197,28697.0,28694.0,0.2502144]
[1680661192624,0.37924656,28695.0,28694.0,0.2502144]
[1680661192866,0.37924656,28695.0,28694.0,0.2503944]
[1680661192868,0.37424656,28695.0,28694.0,0.2503944]
[1680661193098,0.38014656,28695.0,28694.0,0.2503944]
[1680661193322,0.37424656,28695.0,28694.0,0.2503944]
[1680661193780,0.59762442,28695.0,28694.0,0.2503944]
[1680661194016,0.60942442,28695.0,28694.0,0.2503944]
[1680661194244,0.60442442,28695.0,28694.0,0.2473944]
[1680661194510,0.60442442,28695.0,28694.0,0.2453944]
[1680661194777,0.60442442,28695.0,28694.0,0.2463944]
[1680661195496,0.49833716,28699.0,28694.0,0.64501868]
[1680661195497,0.04276513,28699.0,28694.0,0.64501868]
[1680661195717,0.04276513,28699.0,28694.0,0.2453944]
[1680661195718,0.36651056,28695.0,28694.0,0.2453944]
[1680661195940,0.38339756,28695.0,28694.0,0.2463944]
[1680661196164,0.38339756,28695.0,28694.0,0.2453944]
[1680661196383,0.37159756,28695.0,28694.0,0.2453944]
[1680661196886,0.69189756,28695.0,28694.0,0.61007182]
[1680661197146,2.29332035,28700.0,28695.0,0.675003]
[1680661197147,0.00021,28697.0,28695.0,0.675003]
[1680661197381,0.04193543,28698.0,28695.0,0.00018]
[1680661197610,0.0118,28699.0,28695.0,0.00018]
[1680661197835,0.0448258,28696.0,28695.0,0.00018]
[1680661198292,0.36651056,28699.0,28695.0,0.00018]
[1680661198293,0.04017585,28697.0,28695.0,0.00018]
[1680661198512,0.36651056,28699.0,28695.0,0.00018]
[1680661198739,0.011853,28698.0,28695.0,0.00018]
[1680661198932,0.0118,28699.0,28695.0,0.00018]
[1680661199198,0.3118,28699.0,28696.0,0.3812403]
[1680661199423,0.3118,28699.0,28696.0,0.3814203]
[1680661199645,0.012523,28697.0,28696.0,0.3814203]
[1680661200100,0.012523,28697.0,28696.0,0.00018]
[1680661200330,0.012523,28697.0,28696.0,0.49937599]
[1680661200572,0.33721097,28699.0,28696.0,0.38255599]
[1680661200573,0.3,28699.0,28696.0,0.38255599]
[1680661201244,0.69004951,28699.0,28696.0,0.00018]
[1680661201477,0.69004951,28699.0,28694.0,0.2452144]
[1680661201478,0.023628,28697.0,28694.0,0.2452144]
[1680661201715,0.74650656,28695.0,28694.0,0.2452144]
[1680661201947,0.89711337,28695.0,28694.0,0.2452144]
[1680661202171,1.05521656,28695.0,28694.0,0.2452144]
[1680661202393,1.05521656,28695.0,28694.0,0.2562144]
[1680661202616,0.68751656,28695.0,28694.0,0.2452144]
[1680661202844,0.68851656,28695.0,28694.0,0.2472144]
[1680661203136,0.68751656,28695.0,28694.0,0.2452144]
[1680661203344,0.75726822,28695.0,28694.0,0.2472144]
[1680661203566,0.75626822,28695.0,28694.0,0.2365144]
[1680661203789,1.12496822,28695.0,28694.0,0.2385144]
[1680661204015,1.05621656,28695.0,28694.0,0.2385144]
[1680661204700,1.05521656,28695.0,28694.0,0.2365144]
[1680661204925,1.05621656,28695.0,28694.0,0.2385144]
[1680661205152,1.05521656,28695.0,28694.0,0.2365144]
[1680661205403,1.05621656,28695.0,28694.0,0.2385144]
[1680661206082,1.05521656,28695.0,28694.0,0.2365144]
[1680661206311,1.05621656,28695.0,28694.0,0.2385144]
[1680661206538,1.05521656,28695.0,28694.0,0.2365144]
[1680661206808,1.05521656,28695.0,28668.0,0.64908932]
[1680661206809,0.3677,28692.0,28684.0,0.22609473]
[1680661207035,0.14189681,28691.0,28687.0,0.20051702]
[1680661207251,0.0118,28688.0,28687.0,0.20069702]
[1680661207469,0.024795,28688.0,28687.0,0.20069702]
[1680661207661,0.37950556,28688.0,28687.0,0.20069702]
[1680661207908,0.67950556,28688.0,28687.0,0.20069702]
[1680661208378,0.68900556,28688.0,28687.0,0.20069702]
[1680661209042,0.68921556,28688.0,28681.0,0.00018]
[1680661209262,0.0118,28684.0,28678.0,0.00012]
[1680661209519,0.14189681,28683.0,28682.0,0.35709741]
[1680661209742,0.30021,28683.0,28682.0,0.35709741]
[1680661209963,0.00021,28683.0,28682.0,0.35709741]
[1680661210189,0.00021,28684.0,28682.0,0.35709741]
[1680661210873,0.36014956,28684.0,28682.0,0.35709741]
[1680661211104,0.35492056,28684.0,28682.0,0.38509741]
[1680661211328,0.3,28683.0,28682.0,0.38509741]
[1680661211548,0.305439,28683.0,28682.0,0.38509741]
[1680661211768,0.305439,28683.0,28680.0,6e-05]
[1680661212001,0.305439,28683.0,28682.0,0.028]
[1680661212002,0.80204637,28683.0,28682.0,0.028]
[1680661212247,0.72792258,28683.0,28679.0,0.45895172]
[1680661212463,0.84538439,28683.0,28682.0,0.028]
[1680661212686,0.72713258,28683.0,28682.0,0.028]
[1680661212908,0.323855,28683.0,28682.0,0.36029845]
[1680661213137,0.35492056,28683.0,28682.0,0.36029845]
[1680661213414,0.65492056,28683.0,28682.0,0.36029845]
[1680661213638,0.311826,28683.0,28682.0,0.33729845]
[1680661213856,0.30121,28683.0,28682.0,0.36129845]
[1680661214070,0.30021,28683.0,28682.0,0.33729845]
[1680661214291,0.30121,28683.0,28682.0,0.34829845]
[1680661214756,0.00121,28683.0,28682.0,0.34829845]
[1680661214969,0.001,28683.0,28682.0,0.34829845]
[1680661215411,0.006229,28683.0,28682.0,0.34829845]
[1680661215634,0.001,28683.0,28682.0,0.34829845]
[1680661216105,0.001,28683.0,28682.0,0.34329845]
[1680661218124,0.001,28683.0,28682.0,0.34335845]
[1680661218318,0.001,28683.0,28682.0,0.34329845]
[1680661219028,0.43402485,28683.0,28682.0,0.011]
[1680661219687,0.73402485,28683.0,28682.0,0.011]
[1680661219929,0.71467456,28683.0,28682.0,0.011]
[1680661220599,0.75830332,28683.0,28682.0,0.011]
[1680661221091,0.71367456,28683.0,28678.0,0.027884]
[1680661221319,0.0118,28679.0,28678.0,0.027884]
[1680661221538,0.52518937,28679.0,28678.0,0.027884]
[1680661221764,0.69179256,28679.0,28678.0,0.027884]
[1680661222212,0.68689256,28679.0,28678.0,0.02794744]
[1680661222442,0.67839256,28679.0,28678.0,0.02794744]
[1680661222661,0.71743613,28679.0,28678.0,0.02794744]
[1680661222881,0.71764613,28679.0,28678.0,0.03894744]
[1680661223099,0.71764613,28679.0,28678.0,0.02794744]
[1680661223322,0.331892,28679.0,28678.0,0.02994744]
[1680661223545,0.02034,28679.0,28678.0,0.02994744]
[1680661223766,0.32013,28679.0,28678.0,0.02994744]
[1680661224014,0.33269,28679.0,28678.0,0.02994744]
[1680661224228,0.332307,28679.0,28678.0,0.02994744]
[1680661224449,0.69551756,28679.0,28678.0,0.02994744]
[1680661224670,0.74311993,28679.0,28678.0,0.02994744]
[1680661224897,0.74332993,28679.0,28678.0,0.02994744]
[1680661225783,0.73482993,28679.0,28678.0,0.02994744]
[1680661231670,0.75892993,28679.0,28678.0,0.02994744]
[1680661232117,0.85002481,28679.0,28678.0,0.02994744]
[1680661232336,0.75886346,28679.0,28678.0,0.02994744]
[1680661232785,0.78469452,28679.0,28678.0,0.02994744]
[1680661234154,0.78469452,28679.0,28678.0,0.00206344]
[1680661235659,0.78462738,28679.0,28678.0,0.00206344]
[1680661235878,0.78441738,28679.0,28678.0,0.00206344]
[1680661236109,0.79494218,28679.0,28678.0,0.00206344]
[1680661236333,0.74517148,28679.0,28678.0,0.00206344]
[1680661236593,1.11287148,28679.0,28678.0,0.00206344]
[1680661236814,1.16527062,28679.0,28678.0,0.00206344]
[1680661237037,1.23612143,28679.0,28678.0,0.00206344]
[1680661237474,1.1589307,28679.0,28678.0,0.00206344]
[1680661238815,0.7912307,28679.0,28678.0,0.00206344]
[1680661241991,0.74517148,28679.0,28678.0,0.00206344]
[1680661242210,0.79550337,28679.0,28678.0,0.00206344]
[1680661242660,0.79550337,28679.0,28673.0,0.39649844]
[1680661242880,0.031,28675.0,28673.0,0.39661844]
[1680661243153,0.37223356,28674.0,28673.0,0.39661844]
[1680661243376,0.66700256,28674.0,28673.0,0.00018]
[1680661243601,0.66700256,28674.0,28673.0,0.00012]
[1680661243830,0.67223356,28674.0,28673.0,0.00018]
[1680661244053,0.67223356,28674.0,28673.0,0.01118]
[1680661244275,0.67223356,28674.0,28673.0,0.00018]
[1680661244494,0.67323356,28674.0,28673.0,0.01118]
[1680661245152,0.71133287,28674.0,28673.0,0.01118]
[1680661245603,0.71033287,28674.0,28673.0,0.00018]
[1680661245834,0.71933287,28674.0,28673.0,0.00118]
[1680661248552,0.71933287,28674.0,28673.0,0.001]
[1680661248553,0.72783287,28674.0,28673.0,0.001]
[1680661248988,0.75883287,28674.0,28673.0,0.001]
[1680661249216,0.83785476,28674.0,28673.0,0.001]
[1680661249459,0.75883287,28674.0,28673.0,0.001]
[1680661250100,0.74983287,28674.0,28671.0,0.00018]
[1680661250321,0.042894,28672.0,28670.0,0.00018]
[1680661250541,0.41303356,28671.0,28670.0,0.00018]
[1680661250804,0.71303356,28671.0,28670.0,0.00018]
[1680661252152,0.71303356,28671.0,28669.0,0.00018]
[1680661252374,0.68840456,28671.0,28670.0,0.002]
[1680661252603,0.67271056,28671.0,28670.0,0.34166083]
[1680661252826,0.67271056,28671.0,28670.0,0.34184083]
[1680661253043,0.67794156,28671.0,28670.0,0.34184083]
[1680661253692,0.70310372,28671.0,28670.0,0.34184083]
[1680661253917,0.70310372,28671.0,28670.0,0.00218]
[1680661254131,0.71500372,28671.0,28670.0,0.002]
[1680661254350,0.71500372,28671.0,28670.0,0.00218]
[1680661254604,0.69700372,28671.0,28670.0,0.00018]
[1680661254846,0.70310372,28671.0,28670.0,0.00218]
[1680661255503,0.70331372,28671.0,28670.0,0.002]
[1680661255718,0.70310372,28671.0,28670.0,0.00218]
[1680661256799,0.71632772,28671.0,28670.0,0.00218]
[1680661257018,0.70310372,28671.0,28670.0,0.00218]
[1680661257248,0.68510372,28671.0,28670.0,0.00018]
[1680661257457,0.68510372,28671.0,28670.0,0.00518]
[1680661257899,0.32516216,28671.0,28670.0,0.34476536]
[1680661258125,0.02516216,28671.0,28670.0,0.33976536]
[1680661258394,0.32716216,28671.0,28670.0,0.33976536]
[1680661258614,0.32516216,28671.0,28670.0,0.33976536]
[1680661258831,0.32516216,28671.0,28670.0,0.42742487]
[1680661259482,0.02516216,28671.0,28670.0,0.34476536]
[1680661259720,0.02516216,28671.0,28670.0,0.42242487]
[1680661260138,0.02516216,28671.0,28670.0,0.42742487]
[1680661260567,0.02516216,28671.0,28670.0,0.08783951]
[1680661260793,0.02516216,28671.0,28670.0,0.5854283]
[1680661261033,0.02516216,28671.0,28670.0,0.6335053]
[1680661261481,0.02516216,28671.0,28670.0,0.4854283]
[1680661261707,0.02516216,28671.0,28670.0,0.32054132]
[1680661261935,0.02516216,28671.0,28670.0,0.36223351]
[1680661262163,0.02516216,28671.0,28670.0,0.44333351]
[1680661262410,0.150404,28679.0,28670.0,0.44333351]
[1680661262411,0.00021,28678.0,28670.0,1.80412774]
[1680661262657,0.150404,28679.0,28676.0,0.08318084]
[1680661262658,0.00871719,28679.0,28676.0,0.08318084]
[1680661262894,0.00871719,28679.0,28678.0,0.046147]
[1680661262895,0.00850719,28679.0,28678.0,0.046147]
[1680661263347,0.08058084,28682.0,28678.0,0.046147]
[1680661263348,0.08601984,28682.0,28678.0,0.046147]
[1680661263634,0.35471056,28681.0,28677.0,0.08318084]
[1680661263910,0.00021,28681.0,28677.0,0.08318084]
[1680661264169,0.00021,28681.0,28678.0,0.003]
[1680661264432,0.02621,28682.0,28677.0,0.08318084]
[1680661264691,0.001,28681.0,28677.0,0.09318084]
[1680661265213,0.03255973,28680.0,28678.0,0.45293564]
[1680661265483,0.03255973,28680.0,28679.0,0.04626]
[1680661265737,0.032439,28682.0,28679.0,0.04626]
[1680661265997,0.032439,28682.0,28678.0,0.34028662]
[1680661265998,0.031439,28682.0,28678.0,0.34028662]
[1680661266295,0.031439,28682.0,28678.0,0.34428662]
[1680661266531,0.031439,28682.0,28678.0,0.34028662]
[1680661266814,0.03260032,28681.0,28678.0,0.37335736]
[1680661267088,0.06360032,28681.0,28678.0,0.00018]
[1680661267343,0.06360032,28681.0,28678.0,0.004]
[1680661267728,0.06360032,28681.0,28678.0,0.3997884]
[1680661267940,0.06360032,28681.0,28678.0,0.3999684]
[1680661268147,0.06360032,28681.0,28678.0,0.3959684]
[1680661268343,0.06360032,28681.0,28678.0,0.3999684]
[1680661268609,0.03260032,28681.0,28678.0,0.3999684]
[1680661269088,0.03782932,28681.0,28678.0,0.3999684]
[1680661270236,0.03608632,28681.0,28678.0,0.3999684]
[1680661270430,0.03608632,28681.0,28679.0,0.35403624]
[1680661270628,0.03608632,28681.0,28679.0,0.35421624]
[1680661271440,0.03808632,28681.0,28679.0,0.35421624]
[1680661272253,0.03608632,28681.0,28679.0,0.35421624]
[1680661272462,0.03708632,28681.0,28679.0,0.36521624]
[1680661272666,0.04981198,28680.0,28679.0,0.01118]